bitfinex-derivatives/quotes_BTCF0:USTF0_20250710
["timestamp","ask_amount","ask_price","bid_price","bid_amount"]
[1752146957739,0.27223496,111250.0,111240.0,1.13654628]
[1752146957935,0.27223496,111250.0,111240.0,1.12249718]
[1752146958241,0.03201617,111250.0,111240.0,1.12249718]
[1752146960739,0.03201617,111250.0,111240.0,0.88227839]
[1752146960946,0.37332496,111250.0,111240.0,0.82107839]
[1752146962758,0.13310617,111250.0,111240.0,0.82107839]
[1752146963055,0.37332496,111250.0,111240.0,1.08785453]
[1752146963260,0.37332496,111250.0,111240.0,0.84763574]
[1752146964454,0.37332496,111250.0,111240.0,0.8337396]
[1752146966259,0.37332496,111250.0,111240.0,0.84768951]
[1752146966962,0.37332496,111250.0,111240.0,0.8337396]
[1752146967758,0.37332496,111250.0,111240.0,0.84769567]
[1752146967955,0.37332496,111250.0,111240.0,1.08791446]
[1752146968859,0.13310617,111250.0,111240.0,0.84769567]
[1752146970761,0.37317711,111250.0,111240.0,0.84769567]
[1752146971359,0.37317711,111250.0,111240.0,0.88804242]
[1752146971760,0.37317711,111250.0,111240.0,0.84769567]
[1752146972158,0.37317711,111250.0,111240.0,0.88804242]
[1752146972759,0.37317711,111250.0,111240.0,0.84769567]
[1752146973264,0.37317711,111250.0,111240.0,0.88794341]
[1752146978365,0.37317711,111250.0,111240.0,0.87408635]
[1752146978565,0.37317711,111250.0,111240.0,0.8337396]
[1752146979269,0.45414688,111250.0,111240.0,0.8337396]
[1752146979471,0.37317711,111250.0,111240.0,0.8337396]
[1752146982172,0.37317711,111250.0,111240.0,0.87408635]
[1752146982672,0.37317711,111250.0,111240.0,0.8337396]
[1752146983173,0.37317711,111250.0,111240.0,0.87408635]
[1752146984172,0.37317711,111250.0,111240.0,0.2200596]
[1752146984375,0.73397711,111250.0,111240.0,0.8336616]
[1752146986372,0.49390617,111250.0,111240.0,0.8336616]
[1752146987975,0.49390617,111250.0,111240.0,0.8645616]
[1752146988769,0.73399253,111250.0,111240.0,0.90490835]
[1752146989882,0.73399253,111250.0,111240.0,0.93580835]
[1752146990084,0.73399253,111250.0,111240.0,0.8954616]
[1752146990085,0.76587694,111250.0,111240.0,0.8954616]
[1752146991586,0.84684671,111250.0,111240.0,0.8954616]
[1752146992082,0.76587694,111250.0,111240.0,0.8954616]
[1752146994391,0.73477694,111250.0,111240.0,0.8954616]
[1752146995088,0.73477694,111250.0,111240.0,1.13554796]
[1752146996594,0.73477694,111250.0,111240.0,0.8954616]
[1752147001300,0.73477694,111250.0,111240.0,0.71573]
[1752147001601,0.91449234,111250.0,111240.0,0.71573]
[1752147002302,0.94539234,111250.0,111240.0,0.71573]
[1752147012415,0.0898713,111240.0,111220.0,0.96836684]
[1752147012613,0.0898713,111240.0,111220.0,0.79318048]
[1752147012614,0.27869636,111230.0,111220.0,0.79318048]
[1752147012813,0.31058077,111230.0,111220.0,1.64674684]
[1752147013215,0.49032847,111230.0,111220.0,1.64674684]
[1752147013613,0.49032847,111230.0,111220.0,0.99032654]
[1752147013809,0.49032847,111230.0,111220.0,1.60480654]
[1752147014412,0.49032847,111230.0,111220.0,1.62331654]
[1752147014612,0.49032847,111230.0,111220.0,1.00983654]
[1752147014814,0.49032847,111230.0,111220.0,1.54262277]
[1752147015110,0.49032847,111230.0,111220.0,1.54062277]
[1752147015318,0.49032847,111230.0,111220.0,1.54262277]
[1752147016421,0.49032847,111230.0,111220.0,1.49768317]
[1752147016921,0.49032847,111230.0,111220.0,0.88420317]
[1752147017122,0.49032847,111230.0,111220.0,1.49768317]
[1752147020816,0.25024211,111230.0,111220.0,1.49768317]
[1752147021022,0.49032847,111230.0,111220.0,1.49768317]
[1752147021618,0.25024211,111230.0,111220.0,1.49768317]
[1752147021819,0.49032847,111230.0,111220.0,1.49768317]
[1752147022520,0.03188441,111230.0,111220.0,1.73776953]
[1752147022719,0.6986294,111240.0,111230.0,0.1797477]
[1752147022918,0.70079655,111240.0,111230.0,0.48243406]
[1752147023118,0.70079655,111240.0,111230.0,0.50094406]
[1752147023420,0.94088291,111240.0,111230.0,0.50094406]
[1752147023619,0.94088291,111240.0,111230.0,1.11442406]
[1752147024626,0.94088291,111240.0,111230.0,0.50094406]
[1752147024823,0.94088291,111240.0,111230.0,1.11442406]
[1752147028627,1.02185268,111240.0,111230.0,1.11442406]
[1752147029528,1.02185268,111240.0,111230.0,0.8743377]
[1752147029827,1.02185268,111240.0,111230.0,1.11442406]
[1752147033330,0.66105268,111240.0,111230.0,1.11442406]
[1752147033530,1.02185268,111240.0,111230.0,1.11442406]
[1752147034029,1.02185268,111240.0,111230.0,0.8743377]
[1752147034226,1.02185268,111240.0,111230.0,1.11442406]
[1752147038231,0.66105268,111240.0,111230.0,1.11442406]
[1752147038536,1.02185268,111240.0,111230.0,1.11442406]
[1752147038832,0.94088291,111240.0,111230.0,1.11442406]
[1752147039934,0.70079655,111240.0,111230.0,1.11442406]
[1752147040431,0.94088291,111240.0,111230.0,1.11442406]
[1752147041938,0.94088291,111240.0,111230.0,1.11434406]
[1752147042934,0.94088291,111240.0,111230.0,0.50094406]
[1752147043239,0.94088291,111240.0,111230.0,1.13090406]
[1752147043936,0.94088291,111240.0,111230.0,0.51750406]
[1752147044136,1.02185268,111240.0,111230.0,0.71107]
[1752147044336,1.32513904,111240.0,111230.0,0.95115636]
[1752147044525,1.32513904,111240.0,111230.0,0.87004636]
[1752147045034,1.34229195,111240.0,111230.0,0.87004636]
[1752147045340,0.86211923,111240.0,111230.0,0.87004636]
[1752147045541,1.10220559,111240.0,111230.0,0.87004636]
[1752147046039,1.10220559,111240.0,111230.0,0.25664636]
[1752147046242,1.10220559,111240.0,111230.0,0.87000636]
[1752147046642,1.10220559,111240.0,111230.0,0.62992]
[1752147046935,1.10220559,111240.0,111230.0,0.87000636]
[1752147047137,0.0449397,111230.0,111210.0,0.46728018]
[1752147047343,0.72249175,111230.0,111220.0,0.01593]
[1752147047642,0.1797639,111220.0,111210.0,0.97399968]
[1752147047841,0.31340745,111220.0,111210.0,0.90923591]
[1752147048237,0.67420745,111220.0,111210.0,0.11609691]
[1752147048442,1.15438017,111220.0,111210.0,0.03278691]
[1752147048741,1.15438017,111220.0,111210.0,0.64614691]
[1752147049336,1.15438017,111220.0,111210.0,0.01593]
[1752147049542,1.17132938,111220.0,111210.0,0.63129]
[1752147050144,1.13975583,111220.0,111210.0,0.63129]
[1752147050346,1.13975583,111220.0,111210.0,0.62929]
[1752147050537,1.13975583,111220.0,111210.0,0.62933]
[1752147051143,1.13975583,111220.0,111210.0,0.01593]
[1752147051343,1.13975583,111220.0,111210.0,0.62929]
[1752147051544,1.13975583,111220.0,111210.0,0.01593]
[1752147051746,1.13975583,111220.0,111210.0,0.62929]
[1752147052047,1.13975583,111220.0,111210.0,0.01593]
[1752147052244,0.17978,111210.0,111200.0,0.05372342]
[1752147052452,0.88043636,111210.0,111200.0,0.62929]
[1752147052949,0.95085699,111210.0,111200.0,0.62929]
[1752147053148,0.95085699,111210.0,111200.0,0.01593]
[1752147053351,0.95085699,111210.0,111200.0,0.63033]
[1752147054050,0.88043636,111210.0,111200.0,0.63033]
[1752147055053,0.88043636,111210.0,111200.0,0.63133]
[1752147055653,0.88043636,111210.0,111200.0,0.62933]
[1752147060857,0.88043636,111210.0,111200.0,0.01593]
[1752147061055,0.88043636,111210.0,111200.0,0.62933]
[1752147061862,0.88043636,111210.0,111200.0,0.01593]
[1752147062158,0.88043636,111210.0,111200.0,0.62933]
[1752147062960,0.88043636,111210.0,111200.0,0.01593]
[1752147063161,0.88043636,111210.0,111200.0,0.62933]
[1752147063162,0.64035,111210.0,111200.0,0.62933]
[1752147063361,0.88043636,111210.0,111200.0,0.62933]
[1752147064361,0.88043636,111210.0,111200.0,0.01593]
[1752147064661,0.88043636,111210.0,111200.0,0.62933]
[1752147064963,0.88043636,111210.0,111200.0,0.01593]
[1752147065361,0.88043636,111210.0,111200.0,0.62933]
[1752147067861,1.49383636,111210.0,111200.0,0.62933]
[1752147071366,1.56480371,111210.0,111200.0,0.62933]
[1752147072068,1.32471735,111210.0,111200.0,0.62933]
[1752147072268,1.56480371,111210.0,111200.0,0.62933]
[1752147074971,1.57357698,111210.0,111200.0,0.62933]
[1752147076474,1.57357698,111210.0,111200.0,0.66073]
[1752147077475,1.57357698,111210.0,111200.0,0.90081636]
[1752147078777,1.65454675,111210.0,111200.0,0.90081636]
[1752147078977,1.65454675,111210.0,111200.0,0.66073]
[1752147080676,1.65454675,111210.0,111200.0,0.90081636]
[1752147081176,1.41446039,111210.0,111200.0,0.90081636]
[1752147081379,1.65454675,111210.0,111200.0,0.90081636]
[1752147083577,1.65454675,111210.0,111200.0,0.66073]
[1752147088783,1.57357698,111210.0,111200.0,0.66073]
[1752147089385,1.21277698,111210.0,111200.0,0.66073]
[1752147089580,1.57357698,111210.0,111200.0,0.66073]
[1752147091885,1.57357698,111210.0,111200.0,0.90081636]
[1752147092081,0.81963636,111210.0,111200.0,1.35359862]
[1752147092281,0.81963636,111210.0,111200.0,1.37210862]
[1752147092886,0.81963636,111210.0,111200.0,1.13202226]
[1752147093285,0.82866579,111210.0,111200.0,1.13202226]
[1752147093479,0.81963636,111210.0,111200.0,1.13202226]
[1752147094289,0.81963636,111210.0,111200.0,0.8919359]
[1752147094588,0.81963636,111210.0,111200.0,1.13202226]
[1752147095593,0.81963636,111210.0,111200.0,1.11351226]
[1752147096791,0.81963636,111210.0,111200.0,0.93371636]
[1752147097291,0.81963636,111210.0,111200.0,1.11351226]
[1752147097887,0.81963636,111210.0,111200.0,1.13202226]
[1752147098489,0.81963636,111210.0,111200.0,1.14590914]
[1752147099087,0.81963636,111210.0,111200.0,1.1459093]
[1752147099792,0.5795498,111210.0,111200.0,1.38599566]
[1752147100187,0.81963616,111210.0,111200.0,1.38599566]
[1752147101191,0.81963616,111210.0,111200.0,0.90582294]
[1752147101496,0.81963616,111210.0,111200.0,1.1459093]
[1752147101692,0.81963616,111210.0,111200.0,1.1479093]
[1752147102189,0.81963616,111210.0,111200.0,1.1489093]
[1752147102788,0.3608,111210.0,111200.0,1.38899566]
[1752147102989,0.93244537,111220.0,111210.0,0.1797798]
[1752147103288,0.93244537,111220.0,111210.0,0.5290032]
[1752147103289,0.97119537,111220.0,111210.0,0.5290032]
[1752147104492,1.05212584,111220.0,111210.0,0.5290032]
[1752147109397,0.97119537,111220.0,111210.0,0.5290032]
[1752147109895,0.92625087,111220.0,111210.0,0.5290032]
[1752147113701,1.00718134,111220.0,111210.0,0.5290032]
[1752147115303,1.00718134,111220.0,111210.0,0.5104932]
[1752147115804,1.00718134,111220.0,111210.0,0.3307134]
[1752147116306,1.2793677,111220.0,111210.0,0.02952704]
[1752147116516,1.3096677,111220.0,111210.0,0.02952704]
[1752147116715,1.3096677,111220.0,111210.0,0.02953058]
[1752147117615,1.3096677,111220.0,111210.0,0.62693058]
[1752147117915,1.3096677,111220.0,111210.0,0.01389058]
[1752147118118,0.1797959,111200.0,111190.0,0.50790331]
[1752147118317,0.46049226,111200.0,111190.0,0.35775663]
[1752147118517,0.70057862,111200.0,111190.0,0.11767027]
[1752147118718,1.12377862,111200.0,111190.0,0.64450026]
[1752147118913,1.12377862,111200.0,111190.0,0.03146026]
[1752147119113,1.20470909,111200.0,111190.0,0.01569026]
[1752147119514,1.20470909,111200.0,111190.0,0.01869026]
[1752147121221,1.81774909,111200.0,111190.0,0.01869026]
[1752147123421,1.45694909,111200.0,111190.0,0.01869026]
[1752147123623,1.81774909,111200.0,111190.0,0.01869026]
[1752147124323,1.81774909,111200.0,111190.0,0.02069026]
[1752147125524,1.33757637,111200.0,111190.0,0.02069026]
[1752147125727,1.81774909,111200.0,111190.0,0.02069026]
[1752147128627,1.81774909,111200.0,111190.0,0.00679864]
[1752147128825,1.73681862,111200.0,111190.0,0.00679864]
[1752147129329,1.73681862,111200.0,111190.0,0.00579864]
[1752147129527,1.73681862,111200.0,111190.0,0.00379864]
[1752147129728,1.73681862,111200.0,111190.0,0.00479864]
[1752147139535,1.37601862,111200.0,111190.0,0.00479864]
[1752147139735,1.73681862,111200.0,111190.0,0.00479864]
[1752147140036,1.2566459,111200.0,111190.0,0.00479864]
[1752147140331,1.73681862,111200.0,111190.0,0.00479864]
[1752147144841,0.1798124,111190.0,111180.0,0.05371001]
[1752147145038,0.1798286,111180.0,111170.0,1.19569447]
[1752147145235,0.46063496,111180.0,111170.0,1.19569447]
[1752147145939,0.46063496,111180.0,111170.0,1.09699116]
[1752147146131,0.46063496,111180.0,111170.0,0.30418636]
[1752147146330,0.46063496,111180.0,111170.0,0.69349]
[1752147146529,0.46063496,111180.0,111170.0,0.8783348]
[1752147146941,0.46063496,111180.0,111170.0,1.12142116]
[1752147148242,0.46063496,111180.0,111170.0,1.13993116]
[1752147148742,0.46063496,111180.0,111170.0,1.19364117]
[1752147149144,0.46063496,111180.0,111170.0,1.13993116]
[1752147152244,0.46063496,111180.0,111170.0,0.8998448]
[1752147152446,0.46063496,111180.0,111170.0,1.13993116]
[1752147156149,0.2205486,111180.0,111170.0,0.8998448]
[1752147156349,0.46063496,111180.0,111170.0,1.13993116]
[1752147156848,0.46063496,111180.0,111170.0,0.8998448]
[1752147157049,0.46063496,111180.0,111170.0,1.13993116]
[1752147159147,0.2205486,111180.0,111170.0,1.13993116]
[1752147159352,0.46063496,111180.0,111170.0,1.13993116]
[1752147162462,0.2205486,111180.0,111170.0,1.13993116]
[1752147162763,0.46063496,111180.0,111170.0,1.13993116]
[1752147163154,0.04072,111180.0,111170.0,1.19364117]
[1752147163556,0.28080636,111180.0,111170.0,1.19364117]
[1752147163956,0.46063496,111180.0,111170.0,1.19364117]
[1752147168868,0.46063496,111180.0,111170.0,1.13993116]
[1752147169066,0.04072,111180.0,111170.0,1.13993116]
[1752147169274,0.2205486,111180.0,111170.0,1.13993116]
[1752147169975,0.46063496,111180.0,111170.0,1.13993116]
[1752147174176,0.46063496,111180.0,111170.0,1.19364117]
[1752147176079,0.46063496,111180.0,111170.0,0.95355481]
[1752147176377,0.46063496,111180.0,111170.0,1.19364117]
[1752147178981,0.46063496,111180.0,111170.0,1.27420619]
[1752147179581,0.46063496,111180.0,111170.0,1.19364117]
[1752147179973,0.46063496,111180.0,111170.0,0.58068117]
[1752147180273,0.46063496,111180.0,111170.0,1.19348117]
[1752147180479,0.52463496,111180.0,111170.0,1.19348117]
[1752147181096,0.88543496,111180.0,111170.0,1.19348117]
[1752147183483,1.12552132,111180.0,111170.0,1.11087117]
[1752147184081,0.88543496,111180.0,111170.0,1.11087117]
[1752147185782,0.88543496,111180.0,111170.0,0.49807117]
[1752147185984,0.88543496,111180.0,111170.0,1.11087117]
[1752147186180,0.88543496,111180.0,111170.0,0.49807117]
[1752147186379,0.88543496,111180.0,111170.0,1.11083117]
[1752147188680,0.88543496,111180.0,111170.0,1.12476666]
[1752147191289,1.12552132,111180.0,111170.0,0.7047955]
[1752147192285,1.12552132,111180.0,111170.0,0.70479047]
[1752147192586,1.12552132,111180.0,111170.0,0.09207047]
[1752147192788,1.12552132,111180.0,111170.0,0.70479047]
[1752147194284,1.12552132,111180.0,111170.0,0.65108046]
[1752147194583,1.12552132,111180.0,111170.0,0.70479047]
[1752147194980,1.12552132,111180.0,111170.0,0.65108046]
[1752147195178,1.12552132,111180.0,111170.0,0.65107857]
[1752147196490,1.12552132,111180.0,111170.0,0.83092317]
[1752147197791,0.76472132,111180.0,111170.0,0.83092317]
[1752147197990,1.12552132,111180.0,111170.0,0.83092317]
[1752147198291,1.12552132,111180.0,111170.0,0.83093899]
[1752147198992,1.12552132,111180.0,111170.0,0.83093862]
[1752147199992,1.12552132,111180.0,111170.0,0.65109402]
[1752147200895,1.12552132,111180.0,111170.0,0.83093862]
[1752147201585,1.12552132,111180.0,111170.0,0.65109402]
[1752147202488,1.73824132,111180.0,111170.0,0.83093862]
[1752147204094,1.49815496,111180.0,111170.0,1.07102498]
[1752147204392,1.49815496,111180.0,111170.0,1.07103822]
[1752147204588,0.88543496,111180.0,111170.0,1.07103822]
[1752147204993,0.88543496,111180.0,111170.0,1.10293822]
[1752147207988,0.88543496,111180.0,111170.0,1.13433822]
[1752147208188,0.88543496,111180.0,111170.0,1.18804823]
[1752147208792,0.88543496,111180.0,111170.0,1.13433822]
[1752147209398,0.88543496,111180.0,111170.0,1.15284822]
[1752147209897,0.88543496,111180.0,111170.0,0.91276186]
[1752147210096,0.85463496,111180.0,111170.0,0.91276186]
[1752147210290,0.85463496,111180.0,111170.0,1.15284822]
[1752147210485,0.85463496,111180.0,111170.0,0.97300362]
[1752147210694,0.85463496,111180.0,111170.0,1.15284822]
[1752147214006,1.09472132,111180.0,111170.0,1.15284822]
[1752147218403,0.85463496,111180.0,111170.0,1.15284822]
[1752147219704,1.09472132,111180.0,111170.0,1.15284822]
[1752147221903,1.09472132,111180.0,111170.0,1.15280203]
[1752147224909,1.09472132,111180.0,111170.0,1.15280192]
[1752147226711,1.09472132,111180.0,111170.0,0.71420096]
[1752147227010,1.12542132,111180.0,111170.0,0.71420096]
[1752147227511,1.12542132,111180.0,111170.0,0.89404566]
[1752147228111,1.12542132,111180.0,111170.0,0.89404644]
[1752147228611,1.12542132,111180.0,111170.0,1.1341328]
[1752147229315,1.12542132,111180.0,111170.0,1.13413297]
[1752147229811,0.88533496,111180.0,111170.0,1.13413297]
[1752147230208,0.52453496,111180.0,111170.0,1.13413297]
[1752147230413,0.88533496,111180.0,111170.0,1.13413297]
[1752147233918,1.43395496,111180.0,111170.0,1.15264297]
[1752147234519,1.43395496,111180.0,111170.0,1.20635298]
[1752147235814,1.43395496,111180.0,111170.0,1.15264297]
[1752147236814,1.43395496,111180.0,111170.0,1.15264463]
[1752147237221,1.43395496,111180.0,111170.0,1.20635464]
[1752147238221,1.43395496,111180.0,111170.0,1.20635484]
[1752147238617,0.82143496,111180.0,111170.0,1.20635484]
[1752147238916,1.43391496,111180.0,111170.0,1.20635484]
[1752147240022,1.43391496,111180.0,111170.0,1.20635466]
[1752147241622,0.04072,111180.0,111170.0,1.44644102]
[1752147241817,0.02428,111180.0,111170.0,1.44644102]
[1752147242013,0.02428,111180.0,111170.0,1.20635466]
[1752147242320,0.02428,111180.0,111170.0,1.56715466]
[1752147244738,0.2041085,111180.0,111170.0,1.56715466]
[1752147244940,0.2041085,111180.0,111170.0,1.56714908]
[1752147245335,0.46032486,111180.0,111170.0,1.56714908]
[1752147247935,0.46032486,111180.0,111170.0,1.56711619]
[1752147252042,0.46032486,111180.0,111170.0,1.32702983]
[1752147252239,0.46032486,111180.0,111170.0,1.56711619]
[1752147253232,0.46032486,111180.0,111170.0,1.20631619]
[1752147253548,0.49282486,111180.0,111170.0,1.20631619]
[1752147254040,0.73291122,111180.0,111170.0,0.35366983]
[1752147254242,1.12641122,111180.0,111170.0,0.83046982]
[1752147254442,1.12641122,111180.0,111170.0,0.65062512]
[1752147255341,1.12641122,111180.0,111170.0,0.03830512]
[1752147255548,1.12641122,111180.0,111170.0,0.63419512]
[1752147256247,1.12641122,111180.0,111170.0,0.02187512]
[1752147256446,1.12641122,111180.0,111170.0,0.63419512]
[1752147259442,1.12641122,111180.0,111170.0,0.63419237]
[1752147260548,1.12641122,111180.0,111170.0,0.81403687]
[1752147261049,1.12641122,111180.0,111170.0,0.63419237]
[1752147261548,1.12641122,111180.0,111170.0,0.81403687]
[1752147261850,1.12641122,111180.0,111170.0,0.83035687]
[1752147262649,1.12641122,111180.0,111170.0,0.65051237]
[1752147265456,0.76561122,111180.0,111170.0,0.65051237]
[1752147265759,1.12641122,111180.0,111170.0,0.65051237]
[1752147266358,1.73869122,111180.0,111170.0,0.65051237]
[1752147267554,1.75737784,111180.0,111170.0,0.65051237]
[1752147271755,1.75737784,111180.0,111170.0,0.65053739]
[1752147274160,1.75737784,111180.0,111170.0,1.07046825]
[1752147274457,1.51729148,111180.0,111170.0,1.07046825]
[1752147275751,1.51729148,111180.0,111170.0,1.10096825]
[1752147275957,1.51729148,111180.0,111170.0,1.13326825]
[1752147276160,1.51729148,111180.0,111170.0,0.89318189]
[1752147276354,0.90501148,111180.0,111170.0,0.71333739]
[1752147276560,1.14509784,111180.0,111170.0,0.89318189]
[1752147277058,1.14509784,111180.0,111170.0,1.13326825]
[1752147278261,0.78429784,111180.0,111170.0,1.13326825]
[1752147278458,1.14509784,111180.0,111170.0,1.13326825]
[1752147278962,1.14509784,111180.0,111170.0,1.11937086]
[1752147280061,1.14509784,111180.0,111170.0,0.8792845]
[1752147280261,1.14509784,111180.0,111170.0,1.11937086]
[1752147280462,1.14509784,111180.0,111170.0,0.8792845]
[1752147281661,1.14509784,111180.0,111170.0,1.11937086]
[1752147284264,1.22602831,111180.0,111170.0,1.11937086]
[1752147286265,0.86522831,111180.0,111170.0,1.11937086]
[1752147286563,1.22602831,111180.0,111170.0,1.11937086]
[1752147288263,0.86522831,111180.0,111170.0,1.11937086]
[1752147288569,1.22602831,111180.0,111170.0,1.11937086]
[1752147288772,1.22602831,111180.0,111170.0,0.8792845]
[1752147290271,0.86522831,111180.0,111170.0,0.8792845]
[1752147290571,1.22602831,111180.0,111170.0,0.8792845]
[1752147291172,1.22602831,111180.0,111170.0,1.11937086]
[1752147291671,1.22602831,111180.0,111170.0,0.50705086]
[1752147291972,1.22602831,111180.0,111170.0,0.2669645]
[1752147293974,1.22602831,111180.0,111170.0,0.50705086]
[1752147296568,1.22602831,111180.0,111170.0,0.32720636]
[1752147298683,1.22602831,111180.0,111170.0,0.08712]
[1752147300476,0.98594195,111180.0,111170.0,0.08712]
[1752147300683,1.22602831,111180.0,111170.0,0.2669645]
[1752147300980,1.22602831,111180.0,111170.0,0.08712]
[1752147301181,1.22602831,111180.0,111170.0,0.02432]
[1752147302388,0.86522831,111180.0,111170.0,0.02432]
[1752147302576,0.74585559,111180.0,111170.0,0.02432]
[1752147302883,1.22602831,111180.0,111170.0,0.02432]
[1752147303879,0.74585559,111180.0,111170.0,0.02432]
[1752147304077,1.22602831,111180.0,111170.0,0.02432]
[1752147304483,1.22602831,111180.0,111170.0,0.03837932]
[1752147305285,1.22602831,111180.0,111170.0,0.02205932]
[1752147314791,0.74585559,111180.0,111170.0,0.02205932]
[1752147314993,1.22602831,111180.0,111170.0,0.02205932]
[1752147323502,0.74585559,111180.0,111170.0,0.44199008]
[1752147323799,1.22602831,111180.0,111170.0,0.44199008]
[1752147324000,1.22602831,111180.0,111170.0,0.47239008]
[1752147324900,1.22602831,111180.0,111170.0,0.23230372]
[1752147327802,0.86522831,111180.0,111170.0,0.23230372]
[1752147328000,1.22602831,111180.0,111170.0,0.23230372]
[1752147330702,0.74585559,111180.0,111170.0,0.23230372]
[1752147330905,1.22602831,111180.0,111170.0,0.23230372]
[1752147332799,0.74585559,111180.0,111170.0,0.23230372]
[1752147333102,1.22602831,111180.0,111170.0,0.23230372]
[1752147334806,0.74585559,111180.0,111170.0,0.23230372]
[1752147335007,1.22602831,111180.0,111170.0,0.23230372]
[1752147340009,1.14509784,111180.0,111170.0,0.23230372]
[1752147340311,1.14509784,111180.0,111170.0,0.47239008]
[1752147341612,0.66492512,111180.0,111170.0,0.23230372]
[1752147341815,1.14509784,111180.0,111170.0,0.47239008]
[1752147342108,1.14509784,111180.0,111170.0,0.23230372]
[1752147342314,1.14509784,111180.0,111170.0,0.47239008]
[1752147346317,1.22602831,111180.0,111170.0,0.47239008]
[1752147347419,0.86522831,111180.0,111170.0,0.47239008]
[1752147347613,1.14509784,111180.0,111170.0,0.47239019]
[1752147347814,1.22602831,111180.0,111170.0,0.47239019]
[1752147351624,1.22602831,111180.0,111170.0,0.23230383]
[1752147351923,1.22602831,111180.0,111170.0,0.47239019]
[1752147355131,1.22602831,111180.0,111170.0,0.50489019]
[1752147355433,1.22602831,111180.0,111170.0,0.51992019]
[1752147358241,1.22602831,111180.0,111170.0,0.27983383]
[1752147358534,1.22602831,111180.0,111170.0,0.51992019]
[1752147361444,1.22602831,111180.0,111170.0,0.27983383]
[1752147361746,1.22602831,111180.0,111170.0,0.51992019]
[1752147363545,1.22602831,111180.0,111170.0,0.63401943]
[1752147366743,1.58682831,111180.0,111170.0,0.63401943]
[1752147369745,1.58682831,111180.0,111170.0,0.81386393]
[1752147370140,1.58682831,111180.0,111170.0,0.63401943]
[1752147371046,1.50589784,111180.0,111170.0,0.81386393]
[1752147372045,1.50589784,111180.0,111170.0,1.05395029]
[1752147373544,1.26581148,111180.0,111170.0,1.05395029]
[1752147373849,1.50589784,111180.0,111170.0,1.05395029]
[1752147374151,1.50589784,111180.0,111170.0,1.08645029]
[1752147374354,1.50589784,111180.0,111170.0,1.11805029]
[1752147375849,1.02572512,111180.0,111170.0,1.11805029]
[1752147376052,1.26581148,111180.0,111170.0,1.11805029]
[1752147376551,1.34674195,111180.0,111170.0,1.11805029]
[1752147378049,1.58682831,111180.0,111170.0,1.11805029]
[1752147378350,1.22602831,111180.0,111170.0,1.11805029]
[1752147382352,1.22602831,111180.0,111170.0,0.87796393]
[1752147382551,1.22602831,111180.0,111170.0,1.13422029]
[1752147388756,0.98594195,111180.0,111170.0,1.13422029]
[1752147389359,0.96725533,111180.0,111170.0,1.13422029]
[1752147391060,1.20734169,111180.0,111170.0,1.13422029]
[1752147391260,1.20734169,111180.0,111170.0,1.1342201]
[1752147391456,1.20734169,111180.0,111170.0,1.1332201]
[1752147391954,0.69446877,111180.0,111170.0,1.1332201]
[1752147392157,0.04041,111180.0,111170.0,1.39181646]
[1752147392460,0.04041,111180.0,111170.0,1.1487301]
[1752147393361,0.04041,111180.0,111170.0,1.20244011]
[1752147394063,0.2202383,111180.0,111170.0,1.20244011]
[1752147394260,0.04041,111180.0,111170.0,1.56324011]
[1752147394657,0.04041,111180.0,111170.0,1.5095301]
[1752147395163,0.2202383,111180.0,111170.0,1.5095301]
[1752147395661,0.2202383,111180.0,111170.0,1.51854491]
[1752147398362,0.2202383,111180.0,111170.0,0.90658491]
[1752147398562,0.2202383,111180.0,111170.0,1.51834491]
[1752147403664,0.46032466,111180.0,111170.0,1.51834491]
[1752147406065,0.46032466,111180.0,111170.0,1.51831419]
[1752147407372,0.28049636,111180.0,111170.0,1.51831419]
[1752147407866,0.46032466,111180.0,111170.0,1.51831419]
[1752147411869,0.46032466,111180.0,111170.0,1.15751419]
[1752147412070,0.46032466,111180.0,111170.0,1.51831419]
[1752147418173,0.2202383,111180.0,111170.0,1.51831419]
[1752147418372,0.46032466,111180.0,111170.0,1.51831419]
[1752147419473,0.46032466,111180.0,111170.0,1.15751419]
[1752147419671,0.46032466,111180.0,111170.0,1.51831419]
[1752147420273,0.46032466,111180.0,111170.0,1.50929938]
[1752147421076,0.2202383,111180.0,111170.0,1.50929938]
[1752147421376,0.04041,111180.0,111170.0,1.50929938]
[1752147421578,0.04041,111180.0,111170.0,0.95137663]
[1752147421877,0.46032466,111180.0,111170.0,1.50913938]
[1752147422177,0.2202383,111180.0,111170.0,1.50913938]
[1752147422373,0.46032466,111180.0,111170.0,1.56297663]
[1752147422576,0.46032466,111180.0,111170.0,1.50915364]
[1752147422972,0.2202383,111180.0,111170.0,1.50915364]
[1752147423272,0.46032466,111180.0,111170.0,1.50915364]
[1752147423574,0.46032466,111180.0,111170.0,1.50915385]
[1752147423876,0.04041,111180.0,111170.0,1.50915385]
[1752147424085,0.02428,111180.0,111170.0,1.50915385]
[1752147424276,0.02428,111180.0,111170.0,1.51812075]
[1752147424778,0.76352018,111190.0,111180.0,0.1798283]
[1752147424779,0.65873152,111190.0,111180.0,0.1798283]
[1752147424978,0.67452152,111190.0,111180.0,0.77291401]
[1752147425579,0.91460788,111190.0,111180.0,0.77291401]
[1752147425978,0.91460788,111190.0,111180.0,0.77391401]
[1752147426179,0.91460788,111190.0,111180.0,0.77491401]
[1752147426880,0.91460788,111190.0,111180.0,0.53482765]
[1752147427283,0.99552868,111190.0,111180.0,0.53482765]
[1752147428378,0.99552868,111190.0,111180.0,0.53482142]
[1752147429985,0.91460788,111190.0,111180.0,0.53482142]
[1752147432290,0.67452152,111190.0,111180.0,0.53482142]
[1752147432475,0.91460788,111190.0,111180.0,0.77490778]
[1752147433381,0.91460788,111190.0,111180.0,0.53482142]
[1752147433578,0.67452152,111190.0,111180.0,0.53482142]
[1752147434980,0.08895302,111190.0,111180.0,0.53482142]
[1752147435185,0.26876512,111190.0,111180.0,0.77490778]
[1752147435385,0.26876512,111190.0,111180.0,0.53482142]
[1752147437083,0.26876512,111190.0,111180.0,0.29473506]
[1752147437385,0.26876512,111190.0,111180.0,0.53482142]
[1752147438483,0.50885148,111190.0,111180.0,0.53482142]
[1752147439091,0.58977228,111190.0,111180.0,0.53482142]
[1752147439977,0.98147228,111190.0,111180.0,0.53484199]
[1752147443288,0.98147228,111190.0,111180.0,0.52078466]
[1752147443491,0.98147228,111190.0,111180.0,1.14632242]
[1752147444090,0.98147228,111190.0,111180.0,0.90623606]
[1752147444290,0.98147228,111190.0,111180.0,1.14632242]
[1752147446088,0.98147228,111190.0,111180.0,0.90623606]
[1752147446394,0.98147228,111190.0,111180.0,1.12781242]
[1752147446892,0.98147228,111190.0,111180.0,1.06361242]
[1752147448293,0.62067228,111190.0,111180.0,1.06361242]
[1752147448493,0.98147228,111190.0,111180.0,1.06361242]
[1752147451498,0.62067228,111190.0,111180.0,1.06361242]
[1752147451698,0.98147228,111190.0,111180.0,1.06361242]
[1752147452397,0.98147228,111190.0,111180.0,1.06361243]
[1752147454201,0.98147228,111190.0,111180.0,0.88378413]
[1752147456101,0.98147228,111190.0,111180.0,0.62753777]
[1752147456399,1.75203784,111190.0,111180.0,0.01605777]
[1752147456805,2.11283784,111190.0,111180.0,0.01605777]